bitfinex/quotes_ETHUSD_20241217
["timestamp","ask_amount","ask_price","bid_price","bid_amount"]
[1734414479988,1.07558819,4007.5,4007.0,5.49562]
[1734414480191,2.07814701,4007.5,4007.0,5.49562]
[1734414480478,2.07814701,4007.5,4007.0,2.49562]
[1734414482090,1.07558819,4007.2,4006.5,3.0]
[1734414482392,8.95,4007.9,4006.5,3.0]
[1734414482393,1.07558819,4006.9,4006.7,2.4958]
[1734414482701,1.07558819,4007.2,4006.5,0.7901]
[1734414482989,1.07558819,4007.2,4006.8,2.49572]
[1734414483631,1.07558819,4007.2,4006.9,2.49568]
[1734414485280,1.07558819,4007.2,4006.6,2.49583]
[1734414485430,1.07558819,4007.2,4006.6,5.49583]
[1734414486078,1.07558819,4007.2,4006.5,0.7901]
[1734414486278,1.07558819,4007.2,4006.7,2.49581]
[1734414487163,8.95,4007.8,4007.2,2.49549]
[1734414487474,2.0400918,4008.6,4007.5,2.49529]
[1734414487475,1.07558819,4007.7,4007.5,2.49529]
[1734414487778,1.07558819,4007.7,4007.5,5.49529]
[1734414488277,8.95,4008.4,4007.8,2.49512]
[1734414488575,1.05932861,4008.3,4007.9,2.49507]
[1734414488753,1.07558819,4008.1,4007.9,2.49507]
[1734414489147,1.07558819,4008.1,4008.0,3.03952265]
[1734414491041,1.07558819,4008.4,4008.2,2.49485]
[1734414491389,1.0428098,4009.3,4008.2,2.49485]
[1734414491390,8.95,4009.1,4008.8,2.4945]
[1734414491681,0.895,4009.0,4008.8,2.4945]
[1734414491843,1.07558819,4008.9,4008.8,2.4945]
[1734414493955,0.895,4009.0,4008.8,2.4945]
[1734414496887,2.32819832,4008.9,4008.3,2.4948]
[1734414498763,2.32819832,4008.9,4008.4,2.49475]
[1734414498970,2.32819832,4009.3,4008.6,2.49462]
[1734414499782,2.32819832,4009.3,4008.7,2.49454]
[1734414500082,1.12781983,4009.2,4008.7,2.49454]
[1734414500964,1.12781983,4009.2,4008.0,3.7973]
[1734414501165,1.12781983,4009.2,4008.4,2.49471]
[1734414502684,10.07781983,4009.2,4008.4,2.49471]
[1734414502872,10.07781983,4009.2,4008.0,3.7973]
[1734414503080,1.34488279,4009.1,4008.6,2.49461]
[1734414503792,1.34488279,4009.1,4008.7,2.49455]
[1734414504186,1.34488279,4009.1,4008.7,2.53291041]
[1734414505519,1.34488279,4009.1,4008.9,2.49444]
[1734414505660,2.32819832,4009.3,4008.9,2.49444]
[1734414505855,2.32819832,4009.3,4009.0,0.03823112]
[1734414506057,2.32819832,4009.3,4008.9,2.49444]
[1734414506280,2.32819832,4009.3,4009.1,0.03817744]
[1734414506462,2.32819832,4009.3,4008.9,2.49444]
[1734414506463,3.7167206,4009.3,4008.9,2.49444]
[1734414506867,3.7167206,4009.3,4009.0,0.03819655]
[1734414507070,3.7167206,4009.3,4008.9,2.49444]
[1734414507281,3.7167206,4009.3,4009.1,0.03817744]
[1734414507477,3.7167206,4009.3,4008.5,0.7973]
[1734414507478,0.86004141,4009.2,4008.5,0.7973]
[1734414507691,2.32819832,4009.3,4009.2,0.03815833]
[1734414507883,4.47821464,4009.3,4008.7,2.49453]
[1734414508089,4.47821464,4009.3,4008.5,0.7973]
[1734414508090,2.46353044,4009.2,4008.5,0.7973]
[1734414508381,1.60352391,4009.2,4008.8,2.49448]
[1734414509078,3.37100812,4009.3,4008.8,2.49448]
[1734414509307,0.85997688,4009.2,4008.8,2.49448]
[1734414509533,2.15041377,4009.2,4008.8,2.49448]
[1734414509710,0.85997688,4009.1,4008.8,2.49448]
[1734414510029,1.0428098,4009.2,4008.2,3.7952]
[1734414510167,3.68678093,4009.2,4008.2,0.7952]
[1734414510527,3.68678093,4009.2,4007.9,2.49505]
[1734414510528,2.32819832,4008.6,4007.9,2.49502]
[1734414510780,2.32819832,4008.6,4008.0,2.49498]
[1734414511452,0.86060182,4008.5,4008.0,2.49498]
[1734414511658,2.32819832,4008.8,4008.0,2.49498]
[1734414511938,1.86803004,4008.7,4008.0,2.49496]
[1734414512255,1.29093939,4008.6,4007.7,0.7952]
[1734414512433,1.29093939,4008.5,4007.8,5.49511]
[1734414512591,0.57709065,4008.7,4007.8,5.49511]
[1734414512792,1.28352553,4008.6,4007.8,5.49511]
[1734414513093,1.28352553,4008.5,4007.8,5.49511]
[1734414513292,1.28358472,4008.4,4007.8,5.49511]
[1734414513524,2.32819832,4008.8,4007.8,5.49511]
[1734414513728,1.284032,4008.7,4007.8,5.49511]
[1734414513928,0.36122303,4008.6,4007.8,5.49511]
[1734414514149,1.284032,4008.5,4007.8,5.49511]
[1734414514827,9.31122303,4008.6,4007.8,5.49511]
[1734414515034,1.28422155,4008.5,4007.8,5.49511]
[1734414517352,1.28422155,4008.5,4007.9,2.49506]
[1734414517490,2.57658584,4008.5,4007.9,2.49506]
[1734414517691,1.28422155,4008.4,4007.9,2.49506]
[1734414517892,1.28422155,4008.3,4007.9,2.49506]
[1734414518146,1.29236429,4008.5,4007.9,2.49506]
[1734414518368,1.28411147,4008.4,4007.9,2.49506]
[1734414518551,1.28411147,4008.3,4007.9,2.49506]
[1734414518751,1.29236429,4008.5,4007.9,2.49506]
[1734414518962,2.34456737,4008.4,4007.9,2.49506]
[1734414519094,1.28420864,4008.3,4008.0,3.03826429]
[1734414519292,1.06035873,4008.4,4008.0,3.03826429]
[1734414519532,1.28431433,4008.3,4008.0,3.03826429]
[1734414519761,1.06035873,4008.4,4008.0,3.03826429]
[1734414520043,1.07495349,4008.2,4008.0,3.03826429]
[1734414521249,1.07495349,4008.2,4008.0,0.03826429]
[1734414521401,1.07495349,4008.2,4007.8,3.0]
[1734414521764,1.07495349,4008.2,4007.9,0.03828341]
[1734414521895,2.11698652,4008.2,4007.9,0.03828341]
[1734414523454,2.11698652,4008.2,4007.9,2.49507]
[1734414523635,1.07495349,4008.2,4008.0,0.03826429]
[1734414524252,1.07495349,4008.2,4007.8,3.0]
[1734414524458,1.07495349,4008.2,4008.1,0.03824517]
[1734414524751,1.07495349,4008.2,4007.8,2.49512]
[1734414524893,1.07495349,4008.2,4008.1,0.03824517]
[1734414525097,2.35976148,4008.2,4007.8,5.49512]
[1734414525357,2.11698652,4008.2,4008.1,0.03824517]
[1734414525652,3.40185848,4008.2,4007.8,2.49512]
[1734414525910,2.32690499,4008.1,4007.8,2.49512]
[1734414526075,2.11698652,4008.2,4007.8,2.49512]
[1734414526379,1.28457453,4008.1,4007.8,2.49512]
[1734414526534,2.11698652,4008.2,4007.8,2.49512]
[1734414526869,2.32665034,4008.1,4007.8,2.49512]
[1734414528074,2.32665034,4008.0,4007.7,0.7952]
[1734414528255,1.07495349,4007.9,4007.7,0.7952]
[1734414528582,1.07495349,4007.9,4007.7,3.7952]
[1734414530561,1.28553007,4007.8,4007.7,3.7952]
[1734414530765,1.28553007,4007.8,4007.6,2.49524]
[1734414530938,2.11698652,4007.9,4007.5,3.0]
[1734414531119,1.28550858,4007.8,4007.7,0.0384571]
[1734414531363,2.32754161,4007.8,4007.6,0.03847622]
[1734414531664,1.04203303,4007.8,4007.7,0.0384571]
[1734414531820,0.85718793,4007.8,4007.5,3.0]
[1734414532152,3.18599215,4007.7,4007.5,3.0]
[1734414532466,2.14325956,4007.6,4007.5,3.0]
[1734414532674,1.04302232,4007.6,4007.5,3.0]
[1734414533024,1.04302232,4007.6,4007.4,3.28186]
[1734414533229,3.18628188,4007.5,4007.2,3.0]
[1734414533487,1.04302232,4007.5,4007.2,5.49548]
[1734414533664,3.18657483,4007.5,4007.2,5.49548]
[1734414533967,2.14355251,4007.4,4007.2,5.49548]
[1734414534138,1.04302232,4007.5,4007.3,0.03887926]
[1734414534552,1.04302232,4007.5,4007.2,5.49548]
[1734414534760,1.04302232,4007.5,4007.4,0.03886013]
[1734414534964,1.04302232,4007.5,4007.3,0.03887926]
[1734414535239,3.1863507,4007.5,4007.2,5.49548]
[1734414535579,1.07495349,4007.3,4007.0,2.49561]
[1734414535883,1.07495349,4007.3,4007.1,3.03930273]
[1734414535884,0.85733135,4007.2,4007.1,3.03930273]
[1734414536053,2.11797581,4007.3,4007.1,3.03930273]
[1734414536254,0.89531326,4007.2,4007.1,4.379294]
[1734414536580,1.04302232,4008.1,4007.6,3.7865]
[1734414536781,1.56290476,4008.3,4007.6,4.10248805]
[1734414536782,1.07495349,4008.2,4007.6,4.10248805]
[1734414536980,1.07495349,4008.2,4007.7,0.03934772]
[1734414537148,1.04302232,4008.1,4007.7,0.03934772]
[1734414537971,2.11797581,4008.2,4007.7,0.03934772]
[1734414538168,2.11797581,4008.2,4007.9,2.49507]
[1734414538497,2.11797581,4008.2,4007.9,5.53435792]
[1734414538498,9.80339102,4008.0,4007.9,5.53435792]
[1734414539000,0.85339102,4008.0,4007.9,5.53435792]
[1734414539305,1.89633343,4008.1,4008.0,3.0]
[1734414539461,0.85333755,4008.1,4008.0,3.0]
[1734414539667,1.04302232,4008.4,4008.2,3.0]
[1734414539859,0.85336923,4008.3,4008.2,3.0]
[1734414540038,1.04302232,4008.5,4008.4,3.0]
[1734414540244,1.89640089,4008.5,4008.3,5.49482]
[1734414540490,1.89640089,4008.5,4008.4,3.03885164]
[1734414540793,1.89651249,4008.5,4008.4,3.03885164]
[1734414541420,1.04302232,4008.6,4008.5,5.49469]
[1734414541676,1.04302232,4008.6,4008.5,6.30219]
[1734414541903,1.04302232,4008.6,4008.5,6.34092871]
[1734414542281,0.85362428,4008.6,4008.5,6.34092871]
[1734414542478,1.8966466,4008.8,4008.5,6.34092871]
[1734414542702,0.85362428,4008.7,4008.5,6.34092871]
[1734414542871,1.04302232,4008.8,4008.7,2.49457]
[1734414543063,1.8967952,4008.8,4008.7,2.49457]
[1734414543311,0.85377288,4008.8,4008.7,5.53316186]
[1734414543476,2.11797581,4009.1,4008.9,2.49444]
[1734414543825,2.11797581,4009.1,4009.0,3.8075]
[1734414543826,1.07495349,4009.1,4009.0,3.8075]
[1734414543965,0.85376112,4009.1,4009.0,3.84594071]
[1734414544170,1.04302232,4009.3,4009.1,5.49432]
[1734414544400,1.89661043,4009.2,4009.1,5.49432]
[1734414544668,1.04302232,4009.2,4009.1,5.49432]
[1734414544880,0.85358811,4009.2,4009.1,5.49432]
[1734414545516,1.04302232,4009.4,4009.3,2.4942]
[1734414545918,1.8961778,4009.4,4009.3,2.4942]
[1734414546139,1.04302232,4009.4,4009.3,2.4942]
[1734414546350,0.85315548,4009.4,4009.3,2.4942]
[1734414546484,3.17560508,4009.5,4009.3,2.4942]
[1734414546813,2.13258276,4009.4,4009.3,2.4942]
[1734414547031,1.27951695,4009.4,4009.3,2.4942]
[1734414549026,1.27951695,4009.4,4009.3,2.53147704]
[1734414550327,2.13174493,4009.4,4009.3,2.53147704]
[1734414550657,0.8530113,4009.4,4009.3,2.53147704]
[1734414551250,1.89603362,4009.5,4009.3,2.53147704]
[1734414551388,2.71019164,4009.4,4009.3,0.03727704]
[1734414551591,4.2730964,4009.4,4009.1,3.0]
[1734414551889,3.89057128,4009.2,4009.0,2.49433]
[1734414552120,3.89057128,4009.2,4008.3,0.796]
[1734414552121,2.13153115,4009.1,4008.3,3.796]
[1734414552329,3.17326292,4009.0,4008.8,2.49449]
[1734414552628,2.13136486,4008.9,4008.8,2.49449]
[1734414552836,3.02648352,4008.9,4008.4,3.0]
[1734414552993,2.32766652,4008.7,4008.3,3.796]
[1734414553913,2.32766652,4008.7,4008.6,2.49463]
[1734414554217,3.58738728,4008.7,4008.6,2.49463]
[1734414554426,3.17981077,4008.7,4008.6,2.49463]
[1734414555093,3.17973443,4008.7,4008.6,2.49463]
[1734414555294,2.32766652,4008.7,4008.6,2.49463]
[1734414560098,1.04173177,4008.9,4008.8,2.49451]
[1734414560441,0.85179259,4008.9,4008.8,2.49451]
[1734414560642,3.36939829,4009.1,4008.8,2.49451]
[1734414560949,2.32766652,4009.1,4009.0,2.49438]
[1734414561137,5.49895204,4009.1,4009.0,2.49438]
[1734414561324,4.45722027,4009.1,4009.0,5.53221784]
[1734414563541,3.17948802,4009.1,4009.0,5.53221784]
[1734414564044,3.17922391,4009.1,4009.0,5.53221784]
[1734414564203,0.85155739,4009.1,4009.0,5.53221784]
[1734414564404,8.95,4009.5,4009.4,2.49413]
[1734414564602,11.07959053,4009.5,4009.4,2.5318942]
[1734414565204,13.40725705,4009.5,4009.4,2.5318942]
[1734414565654,13.40725705,4009.5,4009.4,2.49413]
[1734414565871,4.45725705,4009.5,4009.4,2.53178067]
[1734414566194,3.20393521,4009.5,4009.4,2.53178067]
[1734414567045,3.20393521,4009.5,4009.4,2.49413]
[1734414567644,3.20393521,4009.5,4009.4,2.53178067]
[1734414568505,3.20393521,4009.5,4009.4,2.49413]
[1734414568943,3.20474504,4009.5,4009.4,2.49413]
[1734414569140,3.7856832,4009.5,4009.4,2.53174118]
[1734414569343,3.7856832,4009.5,4009.4,2.49413]
[1734414569505,3.7856832,4009.5,4009.4,2.53144998]
[1734414570045,4.86002788,4009.5,4009.4,0.03731998]
[1734414570357,5.48984707,4009.5,4009.1,2.49429]
[1734414570567,3.19016344,4009.2,4009.1,2.49429]
[1734414570767,5.32054249,4009.2,4008.8,2.49447]
[1734414571067,1.07434468,4008.9,4008.8,2.49447]
[1734414572722,1.04142786,4009.2,4008.8,2.49447]
[1734414573050,8.95,4009.3,4009.1,2.49432]
[1734414574435,1.07436918,4009.2,4009.1,2.49432]
[1734414575250,3.20435917,4009.2,4009.1,2.49432]
[1734414575423,1.92636685,4009.2,4009.1,2.49432]
[1734414576121,1.07436918,4009.2,4009.1,2.49432]
[1734414576647,1.9264626,4009.2,4009.1,2.49432]
[1734414576825,1.92646884,4009.2,4009.1,2.49432]
[1734414577043,1.07436918,4009.2,4009.1,2.49432]
[1734414577355,1.92645199,4009.2,4009.1,2.49432]
[1734414577713,4.27905053,4009.2,4009.1,2.49432]
[1734414577919,6.00874734,4009.2,4009.1,2.49432]
[1734414578160,3.8929503,4009.2,4009.1,2.49432]
[1734414578359,4.93454875,4009.2,4009.1,2.49432]
[1734414578661,4.24663941,4009.2,4009.1,2.49432]
[1734414578865,3.2049667,4009.2,4009.1,2.49432]
[1734414579361,3.2049667,4009.2,4009.1,2.53185718]
[1734414579931,4.76717783,4009.2,4009.1,2.53185718]
[1734414580254,4.76759594,4009.2,4009.1,2.53185718]
[1734414580555,5.62320493,4009.2,4009.1,2.53185718]
[1734414581114,5.62320493,4009.2,4009.1,2.49432]
[1734414581345,5.62320493,4009.2,4009.1,2.53185718]
[1734414581511,5.76580631,4009.2,4009.1,2.53185718]
[1734414582558,6.14467524,4009.2,4009.1,2.53185718]
[1734414582851,6.14467524,4009.2,4009.1,2.49432]
[1734414583039,4.0609938,4009.2,4009.1,2.49432]
[1734414583237,6.14467524,4009.2,4009.1,2.53185718]
[1734414583439,4.21775366,4009.2,4009.1,3.31605718]
[1734414583653,4.77355504,4009.2,4009.1,2.53185718]
[1734414584155,4.91325391,4009.2,4009.1,2.53185718]
[1734414584531,6.99693535,4009.2,4009.1,2.49432]
[1734414584729,6.99693535,4009.2,4009.1,2.53207928]
[1734414584926,5.29212284,4009.2,4009.1,2.53207928]
[1734414585828,3.2084414,4009.2,4009.1,2.53207928]
[1734414586027,4.77422374,4009.2,4009.1,2.53207928]
[1734414586352,4.91325391,4009.2,4009.1,2.53207928]
[1734414586716,3.6998745,4009.2,4009.1,2.53207928]
[1734414586922,3.6998745,4009.2,4009.1,3.36467928]
[1734414588057,2.13407222,4009.2,4009.1,3.36467928]
[1734414588377,1.07436918,4009.3,4009.2,2.49426]
[1734414588536,3.20978749,4009.3,4009.2,2.49426]
[1734414588716,3.20978749,4009.3,4009.2,2.53196067]
[1734414589654,4.77544429,4009.3,4009.2,2.53196067]
[1734414591942,3.20978749,4009.3,4009.2,2.53196067]
[1734414592169,4.77544429,4009.3,4009.2,2.53196067]
[1734414592374,3.20978749,4009.3,4009.2,2.53196067]
[1734414593177,3.20978749,4009.3,4009.2,5.53196067]
[1734414593373,3.20916638,4009.3,4009.2,5.53196067]
[1734414593874,4.25269618,4009.3,4009.2,5.53196067]
[1734414594643,7e-06,4009.3,4009.2,6.41784874]
[1734414594979,2.60935614,4009.8,4009.7,3.32655]
[1734414594980,2.64002598,4009.8,4009.7,3.32655]
[1734414595181,1.07436918,4010.4,4009.7,3.32655]
[1734414595182,2.08368144,4010.3,4010.2,3.32624]
[1734414595343,3.15805062,4010.6,4010.3,3.0]
[1734414595543,1.07436918,4010.6,4010.3,3.0]
[1734414595776,1.07436918,4010.4,4010.3,2.49357]
[1734414596078,2.08368144,4010.9,4010.7,2.49333]
[1734414596292,1.07436918,4010.8,4010.7,2.49333]
[1734414597166,2.08368144,4011.0,4010.3,5.49357]
[1734414597367,3.73419294,4011.0,4010.8,2.24393]
[1734414597564,2.60935614,4011.2,4010.6,3.0]
[1734414597565,1.07436918,4010.9,4010.6,3.0]
[1734414597791,1.07436918,4010.7,4010.5,2.2441]
[1734414599282,1.07436918,4010.7,4010.6,5.24405]
[1734414599952,1.07436918,4010.7,4010.6,6.03725]
[1734414600153,2.60935614,4011.7,4011.4,2.24357]
[1734414600154,2.08368144,4011.7,4011.4,2.24357]
[1734414600393,1.07436918,4011.5,4011.4,2.2436]
[1734414601592,1.07436918,4011.5,4011.4,2.27971971]
[1734414601905,8.95,4012.3,4012.0,2.24324]
[1734414602076,1.07436918,4012.1,4012.0,2.24324]
[1734414603867,8.95,4012.3,4012.2,3.03635]
[1734414604088,8.95,4012.3,4012.2,6.03635]
[1734414605028,2.32426286,4012.5,4012.3,2.24305]
[1734414605197,2.32426286,4012.9,4012.2,3.7932]
[1734414605403,2.32426286,4012.9,4012.6,2.2429]
[1734414605580,2.32426286,4012.9,4012.7,2.24286]
[1734414609210,2.32426286,4012.9,4012.8,0.03438226]
[1734414609615,2.32426286,4012.9,4012.7,2.24286]
[1734414609809,2.32426286,4012.9,4012.8,0.03438226]
[1734414610221,2.32426286,4012.9,4012.5,2.24296]
[1734414610825,2.32426286,4012.9,4012.6,2.27732042]
[1734414611402,2.55668915,4012.9,4012.6,0.03442042]
[1734414611949,2.55668915,4012.9,4012.7,0.03440134]
[1734414612233,2.55668915,4012.9,4012.3,5.24306]
[1734414612430,2.55668915,4012.9,4012.8,0.03438226]
[1734414612637,2.55668915,4012.9,4012.3,5.24306]
[1734414612784,2.32426286,4012.9,4012.8,0.03438226]
[1734414613326,2.32426286,4012.9,4012.2,0.7932]
[1734414613549,2.32426286,4012.5,4012.3,3.0]
[1734414614893,2.32426286,4012.5,4012.3,5.24308]
[1734414618125,2.32426286,4012.9,4012.7,2.24284]
[1734414619711,2.32426286,4012.9,4012.2,0.7932]
[1734414619943,2.32426286,4012.9,4012.4,2.243]
[1734414620250,2.32426286,4012.9,4012.3,3.0]
[1734414620251,2.32426286,4012.9,4012.5,2.24298]
[1734414620757,2.64662909,4012.9,4012.5,2.24298]
[1734414621135,2.64662909,4012.9,4012.2,3.03631]
[1734414621319,2.32426286,4012.5,4012.3,3.0]
[1734414623054,2.32426286,4012.5,4012.3,5.24309]
[1734414623432,2.32426286,4012.5,4012.2,0.7932]
[1734414623621,2.32426286,4012.5,4012.3,3.0]
[1734414624274,2.32426286,4012.5,4012.4,0.03373331]
[1734414624602,2.55668915,4012.5,4012.4,0.03373331]
[1734414624953,2.55668915,4012.5,4012.2,2.24315]
[1734414625269,2.55668915,4012.5,4012.3,0.03375239]
[1734414625574,2.55668915,4012.5,4012.2,2.24315]
[1734414625875,2.55668915,4012.5,4012.3,0.03375239]
[1734414626089,1.07280657,4012.4,4012.2,2.24315]
[1734414626292,1.20332986,4012.4,4011.9,0.8203]
[1734414626438,1.07280657,4012.1,4011.6,0.8203]
[1734414626780,1.07280657,4011.7,4011.6,3.06379]
[1734414627749,1.07280657,4011.7,4011.6,6.06379]
[1734414627935,2.32472012,4012.2,4011.7,3.0]
[1734414628135,2.32472012,4012.2,4011.8,2.24335]
[1734414628847,2.32472012,4012.2,4011.9,2.2433]
[1734414629051,2.58043476,4012.2,4011.9,2.2433]
[1734414629444,2.58043476,4012.2,4011.7,3.0]
[1734414629445,2.58043476,4012.2,4012.0,2.24324]
[1734414633392,2.58043476,4012.2,4011.7,5.24341]
[1734414633558,2.58043476,4012.2,4011.7,2.24341]
[1734414634081,2.58043476,4012.2,4011.4,3.0]
[1734414634270,0.25804348,4012.1,4011.8,2.24336]
[1734414634849,0.25804348,4012.1,4011.3,1.09738805]
[1734414635188,0.25804348,4012.1,4011.9,2.24331]
[1734414635973,2.32472012,4012.2,4011.6,0.7814]
[1734414636176,2.32472012,4012.2,4012.1,1.246709]
[1734414636397,2.32472012,4012.2,4011.7,5.24343]
[1734414637047,2.32472012,4012.2,4012.0,2.24321]
[1734414638384,2.32472012,4012.2,4011.7,2.24339]
[1734414638548,2.32472012,4011.8,4011.7,2.24339]
[1734414639164,2.32472012,4011.8,4011.7,2.30621218]
[1734414639598,2.32472012,4011.8,4011.7,0.06282218]
[1734414639997,2.32472012,4011.8,4011.5,2.24352]
[1734414640205,2.32472012,4011.8,4011.7,0.06282218]
[1734414640375,2.58043933,4011.8,4011.6,0.06284205]
[1734414640580,2.58043933,4011.8,4011.5,2.24352]
[1734414640802,2.58043933,4011.8,4011.7,0.06282218]
[1734414641281,2.58043933,4011.8,4011.3,0.3032]
[1734414641282,2.58043933,4011.8,4011.3,3.3032]
[1734414641488,2.58043933,4011.8,4011.6,2.24348]
[1734414641691,2.58043933,4011.8,4011.7,0.06309814]
[1734414643182,3.40203057,4011.8,4011.7,0.06309814]
[1734414643991,3.14631136,4011.8,4011.7,0.06309814]
[1734414644217,0.8218925,4011.8,4011.7,6.08792814]
[1734414644535,1.03906226,4012.0,4011.7,6.08792814]
[1734414644676,1.03906226,4012.1,4011.9,2.24332]
[1734414644875,0.8218519,4012.1,4012.0,3.84646812]
[1734414645128,11.27472012,4012.2,4012.1,5.24321]
[1734414645412,11.27472012,4012.2,4012.1,2.24321]
[1734414645413,13.33027402,4012.2,4012.1,2.24321]
[1734414645710,13.33027402,4012.2,4012.1,2.30625826]
[1734414645875,14.37344327,4012.2,4012.1,2.30625826]
[1734414647159,5.42344327,4012.2,4012.1,2.30625826]
[1734414647353,4.38027402,4012.2,4012.1,2.30625826]
[1734414647559,0.82222156,4012.2,4012.1,6.08965826]
[1734414647769,1.04337724,4012.4,4012.3,2.2431]
[1734414647944,1.04329644,4012.4,4012.3,2.2431]
[1734414648146,1.23351954,4012.4,4012.3,2.30610853]
[1734414648361,2.27681598,4012.4,4012.3,2.30610853]
[1734414648565,2.0558659,4012.4,4012.3,2.30610853]
[1734414648764,0.82234636,4012.4,4012.3,2.30610853]
[1734414648948,3.36801656,4012.6,4012.5,2.24299]
[1734414649282,5.42378506,4012.6,4012.5,2.24299]
[1734414649438,5.42378506,4012.6,4012.5,2.30595882]
[1734414650055,4.17174694,4012.6,4012.5,2.30595882]
[1734414650978,3.12858183,4012.6,4012.5,2.30595882]
[1734414651280,3.91304487,4012.6,4012.5,2.30595882]
[1734414653761,3.91304487,4012.6,4012.5,2.24299]
[1734414653960,3.91304487,4012.6,4012.5,2.30595882]
[1734414654474,3.91304487,4012.6,4012.5,0.06296882]
[1734414654654,5.47272999,4012.6,4012.5,0.06296882]
[1734414654855,5.47272999,4012.6,4012.2,5.2431]
[1734414655056,1.072682,4012.3,4012.2,2.2431]
[1734414655473,3.12858183,4012.3,4012.2,2.2431]
[1734414655884,3.12880565,4012.3,4012.2,2.2431]
[1734414656653,3.12880565,4012.3,4012.0,2.24325]
[1734414656855,2.05619132,4012.2,4011.5,0.7767]
[1734414657074,1.072682,4011.6,4011.5,6.02024]
[1734414657272,1.072682,4011.6,4011.5,3.02024]
[1734414657594,1.072682,4011.6,4011.5,2.24354]
[1734414658488,1.072682,4011.6,4011.2,3.02039]
[1734414658489,3.40036328,4011.6,4011.2,2.24366]
[1734414658665,1.072682,4011.3,4011.2,2.24366]
[1734414658861,1.89537004,4011.3,4011.2,2.24366]
[1734414659287,1.89537004,4011.3,4011.1,2.24377]
[1734414659452,1.072682,4011.3,4011.1,2.24377]
[1734414659852,1.56868684,4011.3,4011.1,2.24377]
[1734414660086,3.14868922,4011.2,4010.8,2.2439]
[1734414660284,0.82262254,4011.1,4010.8,2.2439]
[1734414660704,2.05659895,4011.1,4010.9,2.24386]
[1734414661016,3.36945857,4011.2,4011.1,2.24377]
[1734414661197,4.38267911,4011.2,4011.1,2.24377]
[1734414661392,4.38267911,4011.2,4011.1,2.30726031]
[1734414662286,3.14871165,4011.2,4011.1,2.30726031]
[1734414664303,4.66806986,4011.2,4011.1,2.30726031]
[1734414665965,4.66797284,4011.2,4011.1,2.30726031]
[1734414666289,2.32606668,4011.2,4011.1,2.30726031]
[1734414666595,3.14813324,4011.2,4011.1,6.06586031]
[1734414666794,0.82206656,4011.2,4011.1,6.06586031]
[1734414667100,8.95,4011.4,4011.3,2.24366]
[1734414667474,8.95,4011.4,4011.3,2.30744398]
[1734414668217,2.32606668,4011.6,4011.5,2.24354]
[1734414668512,4.38112039,4011.6,4011.5,2.24354]
[1734414668672,4.38112039,4011.6,4011.5,2.30727931]
[1734414668979,2.32606668,4011.6,4011.5,6.06587931]
[1734414671207,3.36945857,4012.0,4011.6,3.0]
[1734414671423,2.32606668,4012.0,4011.9,2.24332]
[1734414671612,4.38108033,4012.0,4011.9,2.24332]
[1734414671769,4.38108033,4012.0,4011.9,2.30678266]
[1734414672205,7.01788795,4012.0,4011.9,2.30678266]
[1734414672733,4.38108033,4012.0,4011.9,2.30678266]
[1734414673309,5.94076545,4012.0,4011.6,2.24344]
[1734414673644,1.04304407,4011.7,4011.6,2.24344]
[1734414673798,1.23319456,4011.7,4011.3,2.24365]
[1734414674149,2.32606668,4011.5,4011.4,2.24359]
[1734414674430,3.14822067,4011.5,4011.4,2.24359]
[1734414675002,3.14819692,4011.5,4011.4,2.24359]
[1734414675423,2.32606668,4011.5,4011.4,2.24359]
[1734414675914,3.1481551,4011.5,4011.4,2.24359]
[1734414676110,2.32606668,4011.5,4011.4,2.24359]
[1734414679058,1.04308342,4011.7,4011.6,2.24349]
[1734414679223,9.99308342,4012.0,4011.8,2.24338]
[1734414679420,8.95,4012.0,4011.8,2.24338]
[1734414680155,1.07297555,4011.9,4011.8,2.24338]
[1734414682222,1.89494848,4011.9,4011.8,2.24338]
[1734414683133,1.07297555,4011.9,4011.8,2.24338]
[1734414683976,1.89496509,4011.9,4011.8,2.24338]
[1734414684165,1.89494933,4011.9,4011.8,2.24338]
[1734414684876,1.04308342,4012.1,4012.0,2.24327]
[1734414685087,1.07297555,4012.1,4012.0,5.24327]
[1734414685256,1.89488697,4012.1,4012.0,5.30656577]
[1734414685570,3.12778579,4012.1,4012.0,5.30656577]
[1734414685938,1.89488697,4012.1,4012.0,2.30656577]
[1734414686159,3.12779069,4012.1,4012.0,2.30656577]
[1734414687273,3.12780917,4012.1,4012.0,2.30656577]
[1734414687471,3.1277764,4012.1,4012.0,2.30656577]
[1734414687669,1.89488697,4012.1,4012.0,2.30656577]
[1734414688075,1.07297555,4012.1,4012.0,2.30656577]
[1734414688651,1.89488697,4012.1,4012.0,2.30656577]
[1734414688846,3.41811617,4012.1,4012.0,0.06329577]
[1734414689062,3.57802967,4012.1,4011.7,2.24341]
[1734414689376,2.05480047,4012.0,4011.9,2.24332]
[1734414689545,0.82191142,4012.0,4011.9,2.24332]
[1734414689748,2.0630097,4012.0,4011.9,2.24332]
[1734414689952,2.06849928,4012.0,4011.9,2.24332]
[1734414690173,3.1113533,4012.0,4011.9,2.24332]
[1734414692145,3.1113533,4012.0,4011.7,2.24341]
[1734414692146,13.66243492,4012.0,4011.7,2.24341]
[1734414692347,1.07297555,4011.8,4011.7,2.24341]
[1734414692678,3.14153979,4011.8,4011.7,2.24341]
[1734414693049,1.90037526,4011.8,4011.7,2.24341]
[1734414693255,1.07297555,4011.8,4011.7,2.24341]
[1734414693480,4.18444018,4011.8,4011.7,2.24341]
[1734414693879,6.88441237,4011.8,4011.4,2.24355]
[1734414694058,1.07297555,4011.5,4011.1,0.7558]
[1734414694268,2.69997219,4011.8,4011.2,2.24369]
[1734414694269,1.04289486,4011.6,4011.2,2.24369]
[1734414694784,3.11186966,4011.5,4010.8,0.7558]
[1734414694957,2.0689748,4011.4,4011.3,2.24364]
[1734414695876,3.11186966,4011.5,4011.3,2.24364]
[1734414696188,5.07647496,4011.4,4010.8,0.7558]
[1734414696344,2.0689748,4011.3,4011.1,2.24375]
[1734414696548,1.04289486,4011.4,4011.1,2.24375]
[1734414697659,3.11221616,4011.3,4011.1,2.24375]
[1734414697871,1.90070407,4011.2,4011.1,2.24375]
[1734414698092,3.14237504,4011.2,4011.1,2.24375]
[1734414698314,5.82080963,4011.2,4011.1,2.24375]
[1734414698779,4.77791477,4011.2,4011.1,2.24375]
[1734414699179,4.77791477,4011.2,4011.1,2.30717928]
[1734414699693,4.77791477,4011.2,4011.1,2.24375]
[1734414699889,4.77819541,4011.2,4011.1,2.24375]